[Event "*** Titled Tuesday Blitz"]
[Site "Chess.com"]
[Date "2021.03.30"]
[Round "1"]
[White "Leonid_Starozhilov"]
[Black "RaphCamora"]
[Result "0-1"]
[WhiteElo "2699"]
[BlackElo "2404"]
[TimeControl "180+1"]
[EndTime "10:08:42 PDT"]
[Termination "RaphCamora won by resignation"]

1. e4 {[%clk 0:03:00.5]} 1... c5 {[%clk 0:02:55.6]} 2. Nf3 {[%clk 0:02:59.9]}
2... Nc6 {[%clk 0:02:54]} 3. Bb5 {[%clk 0:02:59.7]} 3... g6 {[%clk 0:02:49.3]}
4. O-O {[%clk 0:02:59.3]} 4... Bg7 {[%clk 0:02:48.3]} 5. Nc3 {[%clk 0:02:59.9]}
5... Nd4 {[%clk 0:02:42.6]} 6. a4 {[%clk 0:02:59.5]} 6... a6 {[%clk 0:02:40.1]}
7. Bd3 {[%clk 0:02:50.3]} 7... e6 {[%clk 0:02:33.1]} 8. Nxd4 {[%clk 0:02:46.2]}
8... cxd4 {[%clk 0:02:34]} 9. Ne2 {[%clk 0:02:46.1]} 9... Ne7 {[%clk 0:02:33.3]}
10. c3 {[%clk 0:02:41.1]} 10... Nc6 {[%clk 0:02:29.9]} 11. cxd4 {[%clk
0:02:23.7]} 11... Nxd4 {[%clk 0:02:29.1]} 12. Nxd4 {[%clk 0:02:24]} 12... Bxd4
{[%clk 0:02:27.1]} 13. Rb1 {[%clk 0:02:24.3]} 13... O-O {[%clk 0:02:22.2]} 14.
b4 {[%clk 0:02:23.6]} 14... Qf6 {[%clk 0:02:18.3]} 15. Qe2 {[%clk 0:02:18.3]}
15... d6 {[%clk 0:02:17.9]} 16. Kh1 {[%clk 0:02:14.2]} 16... Bd7 {[%clk
0:02:16.4]} 17. b5 {[%clk 0:01:58.7]} 17... a5 {[%clk 0:02:11.6]} 18. Ba3 {[%clk
0:01:56.6]} 18... e5 {[%clk 0:02:07.6]} 19. Bc4 {[%clk 0:01:52.6]} 19... Be6
{[%clk 0:01:57.4]} 20. Rbc1 {[%clk 0:01:29.1]} 20... Rac8 {[%clk 0:01:51.6]} 21.
d3 {[%clk 0:01:17.2]} 21... Bxc4 {[%clk 0:01:46.8]} 22. Rxc4 {[%clk 0:01:17.2]}
22... Rxc4 {[%clk 0:01:45.8]} 23. dxc4 {[%clk 0:01:18.1]} 23... Rc8 {[%clk
0:01:44.5]} 24. f3 {[%clk 0:01:14.9]} 24... Qe6 {[%clk 0:01:42.4]} 25. Rc1
{[%clk 0:01:13.9]} 25... b6 {[%clk 0:01:05.9]} 26. g3 {[%clk 0:01:13.3]} 26...
h5 {[%clk 0:01:05.4]} 27. Kg2 {[%clk 0:01:09.7]} 27... Kg7 {[%clk 0:01:05.6]}
28. h4 {[%clk 0:01:03.6]} 28... f5 {[%clk 0:01:04.2]} 29. Rc2 {[%clk 0:00:48.3]}
29... fxe4 {[%clk 0:01:00]} 30. Qxe4 {[%clk 0:00:48.3]} 30... Rxc4 {[%clk
0:00:58.8]} 31. Qb7+ {[%clk 0:00:28.7]} 31... Kf6 {[%clk 0:00:45.3]} 32. Re2
{[%clk 0:00:15.1]} 32... Rc3 {[%clk 0:00:27.7]} 33. Bb2 {[%clk 0:00:13.5]} 33...
Re3 {[%clk 0:00:27.6]} 34. Rxe3 {[%clk 0:00:10.7]} 34... Bxe3 {[%clk 0:00:28.5]}
35. Qh7 {[%clk 0:00:06]} 35... Qf7 {[%clk 0:00:21.2]} 36. Qh8+ {[%clk
0:00:05.6]} 36... Ke6 {[%clk 0:00:21.8]} 37. Qc8+ {[%clk 0:00:05.3]} 37... Qd7
{[%clk 0:00:19.9]} 38. Qg8+ {[%clk 0:00:04.8]} 38... Qf7 {[%clk 0:00:19.7]} 39.
Qc8+ {[%clk 0:00:04.7]} 39... Kf6 {[%clk 0:00:19.5]} 40. Qc6 {[%clk 0:00:04.4]}
40... Bc5 {[%clk 0:00:17.4]} 41. Bc1 {[%clk 0:00:03.7]} 41... Kg7 {[%clk
0:00:16.9]} 42. Bg5 {[%clk 0:00:03.2]} 42... Qa2+ {[%clk 0:00:16.1]} 43. Kh3
{[%clk 0:00:03.5]} 43... Qe6+ {[%clk 0:00:16]} 44. Kh2 {[%clk 0:00:04]} 44...
Qa2+ {[%clk 0:00:14.2]} 45. Kh3 {[%clk 0:00:04.5]} 45... Qf7 {[%clk 0:00:14.4]}
46. Kg2 {[%clk 0:00:04.2]} 46... Qf5 {[%clk 0:00:13.8]} 47. Qb7+ {[%clk
0:00:03.8]} 47... Qf7 {[%clk 0:00:13.9]} 48. Qe4 {[%clk 0:00:04.2]} 48... Bd4
{[%clk 0:00:12.9]} 49. g4 {[%clk 0:00:04.1]} 49... d5 {[%clk 0:00:13.3]} 50. Qd3
{[%clk 0:00:03.9]} 50... hxg4 {[%clk 0:00:13.3]} 51. fxg4 {[%clk 0:00:04.5]}
51... Qf2+ {[%clk 0:00:12.2]} 52. Kh3 {[%clk 0:00:05]} 52... e4 {[%clk 0:00:12]}
53. Qd2 {[%clk 0:00:04]} 53... Qxd2 {[%clk 0:00:11]} 54. Bxd2 {[%clk 0:00:03.9]}
54... e3 {[%clk 0:00:08.4]} 55. Be1 {[%clk 0:00:04]} 55... Bc5 {[%clk 0:00:08]}
56. Kg3 {[%clk 0:00:04.3]} 56... d4 {[%clk 0:00:08.2]} 57. Kf3 {[%clk
0:00:04.6]} 57... d3 {[%clk 0:00:08.6]} 58. Bc3+ {[%clk 0:00:05.1]} 58... Kf7
{[%clk 0:00:07.7]} 59. h5 {[%clk 0:00:05]} 59... gxh5 {[%clk 0:00:07.6]} 60.
gxh5 {[%clk 0:00:05.9]} 60... e2 {[%clk 0:00:08]} 61. Ke4 {[%clk 0:00:05.2]}
61... Bb4 {[%clk 0:00:07.3]} 62. Kxd3 {[%clk 0:00:05.8]} 62... Bxc3 {[%clk
0:00:07.4]} 63. Kxe2 {[%clk 0:00:06.7]} 63... Kg7 {[%clk 0:00:07.4]} 64. Kd3
{[%clk 0:00:07.6]} 64... Bb4 {[%clk 0:00:06.7]} 65. Ke4 {[%clk 0:00:08.5]} 65...
Bc5 {[%clk 0:00:07.2]} 66. Kf5 {[%clk 0:00:09.2]} 66... Kh6 {[%clk 0:00:07.2]}
67. Kg4 {[%clk 0:00:10.1]} 67... Be7 {[%clk 0:00:07.2]} 68. Kf5 {[%clk
0:00:10.5]} 68... Kxh5 {[%clk 0:00:08.1]} 69. Ke6 {[%clk 0:00:11.1]} 69... Bc5
{[%clk 0:00:08.7]} 70. Kd5 {[%clk 0:00:12]} 70... Kg4 {[%clk 0:00:09.3]} 71. Kc4
{[%clk 0:00:12.9]} 71... Kf3 {[%clk 0:00:10.2]} 72. Kb3 {[%clk 0:00:13.3]} 72...
Ke2 {[%clk 0:00:11.1]} 73. Kc4 {[%clk 0:00:14.1]} 73... Kd1 {[%clk 0:00:11.8]}
74. Kb3 {[%clk 0:00:14.6]} 74... Kc1 {[%clk 0:00:12.5]} 75. Kc3 {[%clk
0:00:15.4]} 75... Kb1 {[%clk 0:00:13.2]} 76. Kb3 {[%clk 0:00:16.3]} 76... Ka1
{[%clk 0:00:13.8]} 77. Kc3 {[%clk 0:00:16.6]} 77... Ka2 {[%clk 0:00:14.7]} 0-1

[Event "*** Titled Tuesday Blitz"]
[Site "Chess.com"]
[Date "2021.03.30"]
[Round "1"]
[White "krzyzan94"]
[Black "2nd_life"]
[Result "0-1"]
[WhiteElo "2691"]
[BlackElo "2399"]
[TimeControl "180+1"]
[EndTime "10:08:43 PDT"]
[Termination "2nd_life won by checkmate"]

1. c4 {[%clk 0:03:00]} 1... e5 {[%clk 0:02:56.5]} 2. g3 {[%clk 0:03:00.5]} 2...
c6 {[%clk 0:02:56.3]} 3. Bg2 {[%clk 0:03:00.4]} 3... d5 {[%clk 0:02:56.9]} 4.
cxd5 {[%clk 0:02:58.5]} 4... cxd5 {[%clk 0:02:57.8]} 5. d4 {[%clk 0:02:58.8]}
5... e4 {[%clk 0:02:57.7]} 6. Nc3 {[%clk 0:02:59.2]} 6... Bb4 {[%clk 0:02:57.3]}
7. Nh3 {[%clk 0:02:58.9]} 7... Nf6 {[%clk 0:02:46.3]} 8. O-O {[%clk 0:02:59]}
8... h6 {[%clk 0:02:42.6]} 9. Nf4 {[%clk 0:02:55.3]} 9... O-O {[%clk 0:02:33.1]}
10. f3 {[%clk 0:02:55.5]} 10... Bxc3 {[%clk 0:02:15.5]} 11. bxc3 {[%clk
0:02:51.4]} 11... Bf5 {[%clk 0:02:08]} 12. g4 {[%clk 0:02:38.9]} 12... exf3
{[%clk 0:01:41.9]} 13. exf3 {[%clk 0:02:36.4]} 13... Bh7 {[%clk 0:01:34.2]} 14.
h4 {[%clk 0:02:37.3]} 14... Nc6 {[%clk 0:01:22.8]} 15. g5 {[%clk 0:02:36.7]}
15... hxg5 {[%clk 0:01:22.4]} 16. hxg5 {[%clk 0:02:37.6]} 16... Nd7 {[%clk
0:01:07.8]} 17. Nxd5 {[%clk 0:02:36.2]} 17... Re8 {[%clk 0:01:03.2]} 18. f4
{[%clk 0:02:36.3]} 18... Be4 {[%clk 0:00:58.7]} 19. Bxe4 {[%clk 0:02:35.4]}
19... Rxe4 {[%clk 0:00:58.5]} 20. Qf3 {[%clk 0:02:36.3]} 20... Re8 {[%clk
0:00:55.1]} 21. Bd2 {[%clk 0:02:36.3]} 21... Nb6 {[%clk 0:00:54.7]} 22. Nxb6
{[%clk 0:02:33.5]} 22... Qxb6 {[%clk 0:00:54.1]} 23. f5 {[%clk 0:02:34.4]} 23...
Nxd4 {[%clk 0:00:33.3]} 24. cxd4 {[%clk 0:02:34.2]} 24... Qxd4+ {[%clk
0:00:33.7]} 25. Qf2 {[%clk 0:02:31.7]} 25... Qg4+ {[%clk 0:00:33.5]} 26. Qg2
{[%clk 0:02:32.2]} 26... Qd4+ {[%clk 0:00:32.5]} 27. Qf2 {[%clk 0:02:26]} 27...
Qg4+ {[%clk 0:00:32.2]} 28. Kh1 {[%clk 0:02:25.8]} 28... Qh3+ {[%clk 0:00:28.6]}
29. Qh2 {[%clk 0:02:24.9]} 29... Qxh2+ {[%clk 0:00:28.2]} 30. Kxh2 {[%clk
0:02:25.8]} 30... Re2+ {[%clk 0:00:28.4]} 31. Kg3 {[%clk 0:02:26.7]} 31... Rxd2
{[%clk 0:00:28.7]} 32. Rac1 {[%clk 0:02:23.9]} 32... Rxa2 {[%clk 0:00:28]} 33.
Rc7 {[%clk 0:02:19.2]} 33... Rd8 {[%clk 0:00:23.2]} 34. Rf3 {[%clk 0:02:16.9]}
34... b5 {[%clk 0:00:21.8]} 35. Rb7 {[%clk 0:02:10.9]} 35... a6 {[%clk
0:00:19.1]} 36. g6 {[%clk 0:02:11.4]} 36... fxg6 {[%clk 0:00:14]} 37. fxg6
{[%clk 0:02:12.3]} 37... Ra1 {[%clk 0:00:14.5]} 38. Rff7 {[%clk 0:02:02.2]}
38... Rg1+ {[%clk 0:00:14.1]} 39. Kf2 {[%clk 0:01:57.7]} 39... Rxg6 {[%clk
0:00:15]} 40. Rfc7 {[%clk 0:01:58]} 40... Rf8+ {[%clk 0:00:12.3]} 41. Ke3 {[%clk
0:01:58.2]} 41... Ra8 {[%clk 0:00:12.4]} 42. Re7 {[%clk 0:01:55.7]} 42... a5
{[%clk 0:00:12.2]} 43. Rxb5 {[%clk 0:01:55.2]} 43... a4 {[%clk 0:00:12.7]} 44.
Rbe5 {[%clk 0:01:49.5]} 44... a3 {[%clk 0:00:11.8]} 45. Re8+ {[%clk 0:01:50.1]}
45... Rxe8 {[%clk 0:00:11]} 46. Rxe8+ {[%clk 0:01:51]} 46... Kh7 {[%clk
0:00:11.6]} 47. Ra8 {[%clk 0:01:51.9]} 47... Rg3+ {[%clk 0:00:11.7]} 48. Kf4
{[%clk 0:01:51.3]} 48... Rb3 {[%clk 0:00:11.8]} 49. Kg5 {[%clk 0:01:52]} 49...
Rg3+ {[%clk 0:00:10.6]} 50. Kf4 {[%clk 0:01:52]} 50... Rb3 {[%clk 0:00:09.4]}
51. Kg5 {[%clk 0:01:52.3]} 51... Rc3 {[%clk 0:00:09.7]} 52. Ra6 {[%clk
0:01:46.1]} 52... Kg8 {[%clk 0:00:09.2]} 53. Ra7 {[%clk 0:01:42.8]} 53... Kf8
{[%clk 0:00:09.2]} 54. Kg6 {[%clk 0:01:43.1]} 54... Rg3+ {[%clk 0:00:08.7]} 55.
Kf5 {[%clk 0:01:42.9]} 55... Ke8 {[%clk 0:00:09.2]} 56. Ke6 {[%clk 0:01:43.4]}
56... Kd8 {[%clk 0:00:09.1]} 57. Kd6 {[%clk 0:01:44]} 57... Kc8 {[%clk
0:00:09.5]} 58. Kc6 {[%clk 0:01:44.3]} 58... Kb8 {[%clk 0:00:09.9]} 59. Rb7+
{[%clk 0:01:44.6]} 59... Ka8 {[%clk 0:00:09.6]} 60. Rb4 {[%clk 0:01:41.5]} 60...
Rc3+ {[%clk 0:00:09.6]} 61. Kb6 {[%clk 0:01:41.6]} 61... Kb8 {[%clk 0:00:06.8]}
62. Ra4 {[%clk 0:01:31.7]} 62... Rb3+ {[%clk 0:00:05.9]} 63. Kc6 {[%clk
0:01:31.3]} 63... g5 {[%clk 0:00:06.3]} 64. Kd5 {[%clk 0:01:28.5]} 64... Kb7
{[%clk 0:00:06.4]} 65. Kc4 {[%clk 0:01:29]} 65... Rg3 {[%clk 0:00:06.6]} 66. Kc5
{[%clk 0:01:27.7]} 66... Kc7 {[%clk 0:00:06.6]} 67. Ra7+ {[%clk 0:01:27.6]}
67... Kb8 {[%clk 0:00:07]} 68. Ra4 {[%clk 0:01:25.6]} 68... g4 {[%clk
0:00:07.5]} 69. Kd5 {[%clk 0:00:54.2]} 69... Kb7 {[%clk 0:00:07.7]} 70. Kc5
{[%clk 0:00:49]} 70... Rc3+ {[%clk 0:00:06.8]} 71. Kd4 {[%clk 0:00:48.9]} 71...
Rb3 {[%clk 0:00:06.8]} 72. Kc4 {[%clk 0:00:48.6]} 72... Rf3 {[%clk 0:00:06.9]}
73. Kc5 {[%clk 0:00:40]} 73... g3 {[%clk 0:00:06.8]} 74. Rg4 {[%clk 0:00:40.6]}
74... a2 {[%clk 0:00:05.8]} 75. Rg7+ {[%clk 0:00:41.3]} 75... Ka6 {[%clk
0:00:06]} 76. Rg8 {[%clk 0:00:38.3]} 76... Rc3+ {[%clk 0:00:04.6]} 77. Kb4
{[%clk 0:00:38.7]} 77... Rc7 {[%clk 0:00:02.9]} 78. Rxg3 {[%clk 0:00:37.8]}
78... a1=Q {[%clk 0:00:02.2]} 79. Rg6+ {[%clk 0:00:37.2]} 79... Ka7 {[%clk
0:00:01.9]} 80. Kb3 {[%clk 0:00:36.4]} 80... Qc3+ {[%clk 0:00:02.4]} 81. Ka2
{[%clk 0:00:35.7]} 81... Qc2+ {[%clk 0:00:03.3]} 82. Ka3 {[%clk 0:00:36]} 82...
Qxg6 {[%clk 0:00:04.2]} 83. Kb4 {[%clk 0:00:35.9]} 83... Qb6+ {[%clk 0:00:05.1]}
84. Ka4 {[%clk 0:00:36]} 84... Rc5 {[%clk 0:00:06]} 85. Ka3 {[%clk 0:00:36.2]}
85... Ra5# {[%clk 0:00:06.9]} 0-1

[Event "*** Titled Tuesday Blitz"]
[Site "Chess.com"]
[Date "2021.03.30"]
[Round "1"]
[White "aunqa"]
[Black "frenchpin"]
[Result "0-1"]
[WhiteElo "2096"]
[BlackElo "2507"]
[TimeControl "180+1"]
[EndTime "10:08:49 PDT"]
[Termination "frenchpin won on time"]

1. e4 {[%clk 0:03:00.6]} 1... e6 {[%clk 0:03:00.3]} 2. d4 {[%clk 0:02:59.2]}
2... d5 {[%clk 0:03:00.6]} 3. Nd2 {[%clk 0:02:58.5]} 3... c5 {[%clk 0:02:59.9]}
4. exd5 {[%clk 0:02:58.1]} 4... exd5 {[%clk 0:03:00.8]} 5. Ngf3 {[%clk
0:02:57.7]} 5... Nc6 {[%clk 0:03:01.3]} 6. Bb5 {[%clk 0:02:57.2]} 6... Qe7+
{[%clk 0:03:01.7]} 7. Qe2 {[%clk 0:02:53.8]} 7... Qxe2+ {[%clk 0:03:01.4]} 8.
Kxe2 {[%clk 0:02:53.8]} 8... a6 {[%clk 0:03:01.3]} 9. Bxc6+ {[%clk 0:02:52.9]}
9... bxc6 {[%clk 0:03:02.2]} 10. dxc5 {[%clk 0:02:52.6]} 10... Bxc5 {[%clk
0:03:01.1]} 11. Nb3 {[%clk 0:02:53.1]} 11... Bd6 {[%clk 0:03:01.3]} 12. Be3
{[%clk 0:02:51.7]} 12... Rb8 {[%clk 0:03:01.2]} 13. Rab1 {[%clk 0:02:49.2]}
13... Nf6 {[%clk 0:02:59.8]} 14. Rhe1 {[%clk 0:02:47.9]} 14... Ne4 {[%clk
0:02:58.6]} 15. Kf1 {[%clk 0:02:42.4]} 15... c5 {[%clk 0:02:56.9]} 16. Nxc5
{[%clk 0:02:37.9]} 16... Bf5 {[%clk 0:02:46.3]} 17. Nd3 {[%clk 0:02:34.4]} 17...
f6 {[%clk 0:02:42.1]} 18. Nd4 {[%clk 0:02:27.8]} 18... Bg6 {[%clk 0:02:41.6]}
19. f3 {[%clk 0:02:22]} 19... Nc5 {[%clk 0:02:41.3]} 20. Bf4+ {[%clk 0:02:11.4]}
20... Kd7 {[%clk 0:02:21.4]} 21. Bxd6 {[%clk 0:01:41.6]} 21... Kxd6 {[%clk
0:02:22.3]} 22. Nxc5 {[%clk 0:01:41.2]} 22... Kxc5 {[%clk 0:02:22.6]} 23. Ne6+
{[%clk 0:01:40.6]} 23... Kd6 {[%clk 0:02:19.5]} 24. Nxg7 {[%clk 0:01:35.9]}
24... Bxc2 {[%clk 0:02:16.1]} 25. Rbc1 {[%clk 0:01:33.4]} 25... Rxb2 {[%clk
0:02:15.1]} 26. Re6+ {[%clk 0:01:33]} 26... Kd7 {[%clk 0:02:09.7]} 27. Rxf6
{[%clk 0:01:31.4]} 27... Rg8 {[%clk 0:02:04]} 28. Rf7+ {[%clk 0:01:27.5]} 28...
Kd6 {[%clk 0:02:00.9]} 29. Re1 {[%clk 0:01:25.3]} 29... Bd3+ {[%clk 0:01:57.2]}
30. Kg1 {[%clk 0:01:24.8]} 30... Rxa2 {[%clk 0:01:45.9]} 31. g3 {[%clk
0:01:18.9]} 31... a5 {[%clk 0:01:40.3]} 32. Re6+ {[%clk 0:01:13.3]} 32... Kc5
{[%clk 0:01:40.1]} 33. Rc7+ {[%clk 0:01:12.7]} 33... Kd4 {[%clk 0:01:38.7]} 34.
Rd7 {[%clk 0:01:01.1]} 34... Ra1+ {[%clk 0:01:14]} 35. Kg2 {[%clk 0:00:58.8]}
35... Bf1+ {[%clk 0:01:08.4]} 36. Kf2 {[%clk 0:00:56.2]} 36... Bh3 {[%clk
0:01:08.5]} 37. Re4+ {[%clk 0:00:55.7]} 37... Kc5 {[%clk 0:01:04]} 38. Rc7+
{[%clk 0:00:52]} 38... Kb6 {[%clk 0:00:57.6]} 39. Ree7 {[%clk 0:00:48.9]} 39...
Ra2+ {[%clk 0:00:48.6]} 40. Kg1 {[%clk 0:00:47.9]} 40... Rb8 {[%clk 0:00:39.4]}
41. g4 {[%clk 0:00:42.3]} 41... Ka6 {[%clk 0:00:35.2]} 42. Ra7+ {[%clk
0:00:41.2]} 42... Kb5 {[%clk 0:00:34.8]} 43. Ne6 {[%clk 0:00:30.4]} 43... Kc4
{[%clk 0:00:25.4]} 44. Rab7 {[%clk 0:00:23]} 44... Rxb7 {[%clk 0:00:20.4]} 45.
Rxb7 {[%clk 0:00:22.4]} 45... Rg2+ {[%clk 0:00:14.7]} 46. Kh1 {[%clk 0:00:21.8]}
46... Rd2 {[%clk 0:00:14.1]} 47. Rc7+ {[%clk 0:00:18.8]} 47... Kb4 {[%clk
0:00:11.8]} 48. Kg1 {[%clk 0:00:18.4]} 48... a4 {[%clk 0:00:09.4]} 49. Nf4
{[%clk 0:00:17.8]} 49... Rd1+ {[%clk 0:00:09.2]} 50. Kf2 {[%clk 0:00:17.3]}
50... Bf1 {[%clk 0:00:09.6]} 51. Rb7+ {[%clk 0:00:16.7]} 51... Bb5 {[%clk
0:00:09.1]} 52. Ne6 {[%clk 0:00:15.9]} 52... a3 {[%clk 0:00:08.6]} 53. Nc7
{[%clk 0:00:16]} 53... a2 {[%clk 0:00:08.9]} 54. Rxb5+ {[%clk 0:00:15.8]} 54...
Ka4 {[%clk 0:00:08.8]} 55. Rb8 {[%clk 0:00:15.9]} 55... a1=Q {[%clk 0:00:08.8]}
56. Ra8+ {[%clk 0:00:15.7]} 56... Kb3 {[%clk 0:00:09.2]} 57. Rxa1 {[%clk
0:00:16.1]} 57... Rxa1 {[%clk 0:00:10.1]} 58. Nxd5 {[%clk 0:00:16.4]} 58... Ra2+
{[%clk 0:00:10.6]} 59. Kg3 {[%clk 0:00:16.1]} 59... Kc4 {[%clk 0:00:10.8]} 60.
Nf6 {[%clk 0:00:15.8]} 60... Ra7 {[%clk 0:00:10.6]} 61. h4 {[%clk 0:00:15.5]}
61... Kd4 {[%clk 0:00:10.6]} 62. g5 {[%clk 0:00:14.7]} 62... Ke5 {[%clk
0:00:10.8]} 63. Kg4 {[%clk 0:00:13.1]} 63... Ra4+ {[%clk 0:00:09.6]} 64. Kh5
{[%clk 0:00:11.5]} 64... Rf4 {[%clk 0:00:08.6]} 65. Nxh7 {[%clk 0:00:10.4]}
65... Rxf3 {[%clk 0:00:08.8]} 66. g6 {[%clk 0:00:10.8]} 66... Rg3 {[%clk
0:00:08.6]} 67. Kh6 {[%clk 0:00:08.5]} 67... Ke6 {[%clk 0:00:07.7]} 68. Ng5+
{[%clk 0:00:06.4]} 68... Kf6 {[%clk 0:00:03.9]} 69. g7 {[%clk 0:00:06.1]} 69...
Rg4 {[%clk 0:00:02.3]} 0-1

[Event "*** Titled Tuesday Blitz"]
[Site "Chess.com"]
[Date "2021.03.30"]
[Round "1"]
[White "GiorgianBarbosa"]
[Black "chessdjw"]
[Result "0-1"]
[WhiteElo "2410"]
[BlackElo "2768"]
[TimeControl "180+1"]
[EndTime "10:08:52 PDT"]
[Termination "chessdjw won by checkmate"]

1. d4 {[%clk 0:03:00.9]} 1... Nf6 {[%clk 0:02:59.9]} 2. c4 {[%clk 0:03:00.3]}
2... g6 {[%clk 0:03:00]} 3. Nf3 {[%clk 0:02:57.6]} 3... Bg7 {[%clk 0:02:58.4]}
4. g3 {[%clk 0:02:57.8]} 4... O-O {[%clk 0:02:57.2]} 5. Bg2 {[%clk 0:02:58.3]}
5... d5 {[%clk 0:02:53.5]} 6. cxd5 {[%clk 0:02:55.4]} 6... Nxd5 {[%clk
0:02:52.9]} 7. O-O {[%clk 0:02:55.9]} 7... Nc6 {[%clk 0:02:53.3]} 8. e4 {[%clk
0:02:54.1]} 8... Nb6 {[%clk 0:02:53.6]} 9. d5 {[%clk 0:02:54]} 9... Na5 {[%clk
0:02:54.1]} 10. Nc3 {[%clk 0:02:52]} 10... c6 {[%clk 0:02:48.6]} 11. Bg5 {[%clk
0:02:46.6]} 11... cxd5 {[%clk 0:02:45.1]} 12. exd5 {[%clk 0:02:29.2]} 12... h6
{[%clk 0:02:45.2]} 13. Bf4 {[%clk 0:02:26.8]} 13... Nac4 {[%clk 0:02:43.7]} 14.
Qb3 {[%clk 0:02:18.9]} 14... g5 {[%clk 0:02:41.9]} 15. Bc1 {[%clk 0:02:16.3]}
15... Bf5 {[%clk 0:02:16.1]} 16. a4 {[%clk 0:02:12.7]} 16... Rc8 {[%clk
0:01:43.4]} 17. a5 {[%clk 0:01:55.4]} 17... Nxd5 {[%clk 0:01:42.4]} 18. Rd1
{[%clk 0:01:37]} 18... e6 {[%clk 0:01:17.3]} 19. Nxd5 {[%clk 0:01:35.1]} 19...
exd5 {[%clk 0:01:16.3]} 20. Qxb7 {[%clk 0:01:32.2]} 20... Be4 {[%clk 0:01:06.1]}
21. Qxa7 {[%clk 0:01:18]} 21... Ra8 {[%clk 0:00:39.3]} 22. Qc5 {[%clk
0:01:16.1]} 22... Rxa5 {[%clk 0:00:35.7]} 23. Rxa5 {[%clk 0:01:13.5]} 23... Nxa5
{[%clk 0:00:36.6]} 24. Nd4 {[%clk 0:01:02]} 24... Qa8 {[%clk 0:00:20.9]} 25.
Bxe4 {[%clk 0:00:50.8]} 25... dxe4 {[%clk 0:00:21.8]} 26. Nf5 {[%clk 0:00:51]}
26... Nb3 {[%clk 0:00:19.7]} 27. Qc2 {[%clk 0:00:30.4]} 27... Nxc1 {[%clk
0:00:15]} 28. Rxc1 {[%clk 0:00:28.4]} 28... Re8 {[%clk 0:00:14.7]} 29. Qc4
{[%clk 0:00:21.9]} 29... Bf8 {[%clk 0:00:13.4]} 30. b4 {[%clk 0:00:19.6]} 30...
Qb7 {[%clk 0:00:11.4]} 31. b5 {[%clk 0:00:19.6]} 31... Re5 {[%clk 0:00:11.6]}
32. Ne3 {[%clk 0:00:09.6]} 32... Rc5 {[%clk 0:00:08.8]} 33. Qf1 {[%clk
0:00:07.9]} 33... Rxb5 {[%clk 0:00:06.9]} 34. Rd1 {[%clk 0:00:07.4]} 34... Qb6
{[%clk 0:00:06.6]} 35. Rd5 {[%clk 0:00:05.5]} 35... Rb1 {[%clk 0:00:06.1]} 36.
Rd1 {[%clk 0:00:04.8]} 36... Rb2 {[%clk 0:00:06.6]} 37. Nc4 {[%clk 0:00:04.3]}
37... Qb4 {[%clk 0:00:07]} 38. Nxb2 {[%clk 0:00:04.7]} 38... Qxb2 {[%clk
0:00:07.9]} 39. Re1 {[%clk 0:00:05.1]} 39... Qd4 {[%clk 0:00:07.8]} 40. Re2
{[%clk 0:00:05.7]} 40... Bc5 {[%clk 0:00:08]} 41. Kg2 {[%clk 0:00:06.1]} 41...
Kg7 {[%clk 0:00:08.1]} 42. Qe1 {[%clk 0:00:06.4]} 42... f5 {[%clk 0:00:07.6]}
43. Qd2 {[%clk 0:00:06.9]} 43... Qxd2 {[%clk 0:00:06.9]} 44. Rxd2 {[%clk
0:00:07.8]} 44... Be7 {[%clk 0:00:07.4]} 45. Rc2 {[%clk 0:00:08.2]} 45... Bf6
{[%clk 0:00:07.7]} 46. Rc6 {[%clk 0:00:08.5]} 46... Kg6 {[%clk 0:00:08.2]} 47.
Ra6 {[%clk 0:00:09.1]} 47... g4 {[%clk 0:00:08.8]} 48. h3 {[%clk 0:00:09.3]}
48... h5 {[%clk 0:00:09.2]} 49. h4 {[%clk 0:00:09.7]} 49... Kf7 {[%clk
0:00:09.3]} 50. Kf1 {[%clk 0:00:10.2]} 50... Be5 {[%clk 0:00:09.5]} 51. Ke2
{[%clk 0:00:10.8]} 51... Bf6 {[%clk 0:00:09.7]} 52. Rc6 {[%clk 0:00:11.1]} 52...
Bd4 {[%clk 0:00:09.6]} 53. Rh6 {[%clk 0:00:10.6]} 53... Bf6 {[%clk 0:00:09.3]}
54. Rxh5 {[%clk 0:00:10.8]} 54... Kg6 {[%clk 0:00:09.3]} 55. Rg5+ {[%clk
0:00:09.5]} 55... Bxg5 {[%clk 0:00:09.6]} 56. hxg5 {[%clk 0:00:10.4]} 56... Kxg5
{[%clk 0:00:09.9]} 57. Ke3 {[%clk 0:00:11.1]} 57... Kg6 {[%clk 0:00:10.5]} 58.
Kd4 {[%clk 0:00:11.4]} 58... Kf6 {[%clk 0:00:10.4]} 59. Kd5 {[%clk 0:00:11.8]}
59... Kg6 {[%clk 0:00:07.3]} 60. Ke6 {[%clk 0:00:12]} 60... f4 {[%clk
0:00:06.9]} 61. gxf4 {[%clk 0:00:09.5]} 61... g3 {[%clk 0:00:07.5]} 62. f5+
{[%clk 0:00:08]} 62... Kg5 {[%clk 0:00:07.9]} 63. fxg3 {[%clk 0:00:02.5]} 63...
e3 {[%clk 0:00:08.3]} 64. f6 {[%clk 0:00:03.4]} 64... e2 {[%clk 0:00:08.8]} 65.
f7 {[%clk 0:00:03.7]} 65... e1=Q+ {[%clk 0:00:09.3]} 66. Kd7 {[%clk 0:00:04.2]}
66... Qb4 {[%clk 0:00:08.4]} 67. Ke8 {[%clk 0:00:04]} 67... Qb8+ {[%clk
0:00:08.6]} 68. Ke7 {[%clk 0:00:04.2]} 68... Qc7+ {[%clk 0:00:08.9]} 69. Ke8
{[%clk 0:00:03.5]} 69... Qe5+ {[%clk 0:00:09.1]} 70. Kf8 {[%clk 0:00:02.6]}
70... Kg6 {[%clk 0:00:08]} 71. Kg8 {[%clk 0:00:03.5]} 71... Qg7# {[%clk
0:00:08]} 0-1